bitfinex-derivatives/quotes_SOLF0:USTF0_20251210
["timestamp","ask_amount","ask_price","bid_price","bid_amount"]
[1765398523915,0.05289776,140.47,140.45,4.17229582]
[1765398525214,6.4043,140.51,140.45,4.17229582]
[1765398525423,99.6062,140.53,140.45,4.12]
[1765398525727,99.612,140.52,140.45,4.12]
[1765398526107,99.612,140.52,140.47,0.05448486]
[1765398526318,99.6062,140.53,140.47,4.17448486]
[1765398527316,99.5855,140.56,140.47,4.17448486]
[1765398527516,99.5855,140.56,140.5,0.05074742]
[1765398527714,99.5918,140.55,140.5,0.05074742]
[1765398527920,99.5918,140.55,140.5,4.17074742]
[1765398528217,99.5855,140.56,140.5,4.17074742]
[1765398529116,6.4028,140.54,140.5,4.17074742]
[1765398529518,99.5715,140.58,140.5,4.17074742]
[1765398529714,99.5557,140.6,140.52,4.12]
[1765398529914,99.5488,140.61,140.55,4.16531087]
[1765398530210,9.39589052,140.63,140.55,4.16531087]
[1765398530411,6.4001,140.6,140.55,4.16531087]
[1765398531221,6.4006,140.59,140.55,4.16531087]
[1765398532415,6.401,140.58,140.55,4.16531087]
[1765398534015,6.4002,140.6,140.55,4.16531087]
[1765398534220,99.5272,140.64,140.55,4.16531087]
[1765398534411,108.91089052,140.66,140.58,0.04623061]
[1765398534607,6.3992,140.62,140.58,0.04623061]
[1765398534812,6.3992,140.62,140.59,4.12]
[1765398535013,99.5357,140.63,140.58,0.04623061]
[1765398535926,6.3992,140.62,140.58,4.16623061]
[1765398536222,99.5346,140.63,140.58,0.04623061]
[1765398536420,6.4001,140.6,140.58,0.04623061]
[1765398537721,99.5164,140.66,140.58,4.16623061]
[1765398537925,99.4921,140.69,140.6,4.12]
[1765398538130,112.2616,140.72,140.58,0.04623061]
[1765398538131,99.4776,140.71,140.63,4.1742073]
[1765398538423,6.3966,140.68,140.66,0.04971261]
[1765398540222,99.5144,140.66,140.59,64.36]
[1765398540629,99.5143,140.66,140.59,64.36]
[1765398541015,99.5414,140.62,140.56,6.27180618]
[1765398541325,108.92559052,140.64,140.55,4.12]
[1765398541326,0.05067477,140.6,140.58,0.04692128]
[1765398541826,6.45067477,140.6,140.58,0.04692128]
[1765398542511,6.45067477,140.6,140.52,75.0889622]
[1765398542512,99.5627,140.59,140.52,60.22]
[1765398542823,99.5984,140.54,140.47,10.39180618]
[1765398543018,99.6053,140.53,140.47,4.12]
[1765398543216,6.4042,140.51,140.47,4.12]
[1765398543420,99.6191,140.51,140.44,6.27180618]
[1765398543723,0.04588599,140.49,140.46,0.04879207]
[1765398544031,6.4056,140.48,140.46,0.04879207]
[1765398544216,6.4056,140.48,140.46,3.77879207]
[1765398544521,99.6151,140.52,140.46,3.77879207]
[1765398544522,6.4038,140.52,140.46,3.77879207]
[1765398545526,0.04717104,140.5,140.46,3.77879207]
[1765398545719,0.04717104,140.5,140.47,10.00180618]
[1765398545920,0.04717104,140.5,140.48,3.73]
[1765398548432,0.04717104,140.5,140.47,6.27180618]
[1765398548626,0.04717104,140.5,140.46,0.04879207]
[1765398548823,99.67637104,140.5,140.46,0.04879207]
[1765398549231,0.04717104,140.5,140.46,3.85879207]
[1765398549421,99.5709,140.58,140.49,3.81]
[1765398549618,99.5776,140.57,140.49,10.08180618]
[1765398549929,6.4011,140.58,140.52,3.81]
[1765398550227,99.5811,140.57,140.5,6.27180618]
[1765398550430,99.61449772,140.55,140.52,0.04511298]
[1765398550622,99.6269,140.5,140.45,60.24]
[1765398551024,6.4062,140.47,140.45,60.24]
[1765398551324,99.6269,140.5,140.45,60.24]
[1765398551527,0.05259151,140.49,140.46,0.05189544]
[1765398551723,6.45769151,140.49,140.46,0.05189544]
[1765398552229,0.05259151,140.49,140.46,3.86189544]
[1765398553224,0.05259151,140.49,140.47,3.81]
[1765398554235,0.05259151,140.49,140.46,0.05189544]
[1765398554434,0.05259151,140.49,140.46,3.86189544]
[1765398554637,0.05259151,140.49,140.48,3.81]
[1765398556221,0.05259151,140.49,140.46,6.32370162]
[1765398556424,0.05259151,140.49,140.46,0.05189544]
[1765398556927,6.4055,140.48,140.46,0.05189544]
[1765398557524,99.6054,140.53,140.45,60.24]
[1765398557826,0.05260775,140.52,140.45,66.51180618]
[1765398558022,6.4053,140.49,140.45,66.51180618]
[1765398558229,6.4053,140.49,140.45,60.24]
[1765398558442,99.6225,140.51,140.45,60.24]
[1765398558734,0.04485784,140.48,140.46,0.05452866]
[1765398559331,0.09746559,140.48,140.46,0.05452866]
[1765398559839,6.50306559,140.48,140.46,0.05452866]
[1765398561437,0.09746559,140.48,140.46,0.05452866]
[1765398563040,0.09746559,140.48,140.46,3.86452866]
[1765398564429,104.97359159,140.58,140.47,3.81]
[1765398564629,99.5907,140.55,140.49,10.08180618]
[1765398564940,99.5982,140.54,140.47,6.27180618]
[1765398565244,99.5982,140.54,140.48,10.08180618]
[1765398565440,0.05260775,140.53,140.5,0.04963651]
[1765398565838,6.45600775,140.53,140.5,0.04963651]
[1765398566034,0.05260775,140.53,140.5,0.04963651]
[1765398566540,6.4037,140.52,140.5,0.04963651]
[1765398567139,99.5863,140.56,140.5,0.04963651]
[1765398567345,0.05260775,140.54,140.5,0.04963651]
[1765398567540,0.05260775,140.54,140.5,10.13144269]
[1765398567743,104.95159159,140.61,140.52,3.81]
[1765398567943,99.5707,140.58,140.55,0.04943479]
[1765398568447,99.591,140.55,140.48,3.81]
[1765398568648,99.6022,140.54,140.48,3.81]
[1765398568849,6.4039,140.52,140.48,3.81]
[1765398569252,0.04508811,140.51,140.49,0.05406491]
[1765398569447,6.44928811,140.51,140.49,0.05406491]
[1765398571451,6.44928811,140.51,140.44,12.2755622]
[1765398571452,6.4059,140.47,140.44,6.27180618]
[1765398571657,101.08418811,140.51,140.45,3.81]
[1765398571658,99.6191,140.51,140.45,3.81]
[1765398571857,6.4055,140.48,140.45,10.08180618]
[1765398572059,99.6273,140.5,140.45,10.08180618]
[1765398572355,0.04565216,140.49,140.46,0.04984776]
[1765398572762,99.6489,140.47,140.42,6.27180618]
[1765398573057,99.6489,140.47,140.41,6.27180618]
[1765398573450,6.4072,140.45,140.41,10.08180618]
[1765398573650,99.6489,140.47,140.41,10.08180618]
[1765398573859,0.05262307,140.45,140.43,0.05025326]
[1765398574154,99.71862307,140.45,140.41,6.27180618]
[1765398574359,99.71862307,140.45,140.39,6.27180618]
[1765398574552,99.71862307,140.45,140.37,12.1955622]
[1765398574553,0.05262307,140.45,140.4,6.27180618]
[1765398574761,0.05262307,140.45,140.39,6.27180618]
[1765398574956,6.408,140.43,140.4,6.27180618]
[1765398575262,99.6758,140.43,140.4,0.04697215]
[1765398575454,6.4083,140.42,140.4,0.04697215]
[1765398576258,6.4073,140.44,140.4,3.77697215]
[1765398577054,99.6757,140.43,140.4,0.04697215]
[1765398577558,6.4084,140.42,140.4,0.04697215]
[1765398581870,6.4075,140.44,140.4,3.77697215]
[1765398582164,99.6145,140.52,140.44,3.73]
[1765398582361,6.4039,140.52,140.45,10.06089918]
[1765398582555,99.5938,140.55,140.46,3.73]
[1765398582859,104.98449159,140.57,140.45,6.33089918]
[1765398582860,99.5828,140.57,140.49,3.73]
[1765398583063,99.5828,140.57,140.48,6.33089918]
[1765398583064,0.04893401,140.54,140.52,3.77765539]
[1765398583258,0.04587558,140.54,140.52,10.10855457]
[1765398583458,0.04587558,140.54,140.53,3.73]
[1765398583865,0.04587558,140.54,140.52,3.77765539]
[1765398584164,0.04587558,140.54,140.52,6.37855457]
[1765398584355,0.04587558,140.54,140.52,0.04765539]
[1765398584550,0.04587558,140.54,140.52,6.37855457]
[1765398584761,6.44877558,140.54,140.52,6.37855457]
[1765398584965,6.44877558,140.54,140.52,0.04765539]
[1765398587264,0.04587558,140.54,140.52,3.77765539]
[1765398587470,0.04587558,140.54,140.52,10.10855457]
[1765398587770,0.04587558,140.54,140.52,0.04765539]
[1765398588480,6.44887558,140.54,140.52,0.04765539]
[1765398590060,0.04587558,140.54,140.52,3.77765539]
[1765398590262,99.5505,140.61,140.53,3.73]
[1765398590468,99.5505,140.61,140.53,10.06089918]
[1765398591460,0.04921088,140.58,140.56,0.05207631]
[1765398592265,5.40169159,140.67,140.56,3.78207631]
[1765398592467,6.3987,140.63,140.58,6.33089918]
[1765398592662,6.3987,140.63,140.59,3.73]
[1765398592867,99.5432,140.62,140.57,6.33089918]
[1765398593075,99.5271,140.64,140.58,6.33089918]
[1765398593365,0.04794754,140.62,140.6,0.05194106]
[1765398593674,99.5715,140.58,140.52,3.73]
[1765398594174,6.402,140.56,140.52,3.73]
[1765398594570,0.0471603,140.55,140.53,0.04990222]
[1765398594766,6.4496603,140.55,140.53,0.04990222]
[1765398599568,0.0471603,140.55,140.53,3.77990222]
[1765398600163,0.0471603,140.55,140.53,0.04990222]
[1765398600475,105.04375189,140.55,140.46,3.73]
[1765398600680,6.4029,140.54,140.47,3.73]
[1765398600873,159.0624,140.62,140.49,3.73]
[1765398601076,159.0624,140.62,140.51,3.73]
[1765398601370,99.62317802,140.57,140.54,0.04639657]
[1765398601575,99.6192,140.51,140.46,3.73]
[1765398602177,99.6044,140.54,140.4,68.7055622]
[1765398602178,99.6505,140.47,140.4,68.7055622]
[1765398602376,99.6505,140.47,140.37,8.4655622]
[1765398602377,99.6762,140.43,140.37,8.4655622]
[1765398602678,0.04541106,140.41,140.39,0.05305753]
[1765398603271,6.4093,140.4,140.39,0.05305753]
[1765398603779,0.04541106,140.41,140.39,3.78305753]
[1765398603966,99.6357,140.49,140.39,5.20305753]
[1765398604172,105.01689159,140.52,140.42,3.53]
[1765398604475,6.4051,140.49,140.44,3.53]
[1765398604679,99.5987,140.54,140.44,3.53]
[1765398604975,0.04670542,140.5,140.48,0.04714282]
[1765398605579,0.04670542,140.5,140.48,3.57714282]
[1765398605875,0.04670542,140.5,140.48,0.04714282]
[1765398606268,0.04670542,140.5,140.48,3.57714282]
[1765398608774,6.45120542,140.5,140.48,0.04714282]
[1765398609166,99.6411,140.48,140.42,8.4655622]
[1765398609371,99.6411,140.48,140.4,3.53]
[1765398609372,99.6564,140.46,140.4,3.53]
[1765398609569,99.6687,140.44,140.37,8.4655622]
[1765398609765,99.6834,140.42,140.36,8.4655622]
[1765398609975,6.4093,140.4,140.36,3.53]
[1765398610377,0.05238951,140.39,140.37,3.57642921]
[1765398611679,99.6478,140.47,140.39,3.53]
[1765398611979,6.4065,140.46,140.4,3.53]
[1765398612289,99.619,140.51,140.42,11.9955622]
[1765398612479,0.04617085,140.48,140.46,3.53]
[1765398612981,159.1258,140.56,140.47,3.53]
[1765398612982,99.5858,140.56,140.47,3.53]
[1765398613666,99.5846,140.56,140.48,3.53]
[1765398613871,0.04642535,140.53,140.51,0.05108954]
[1765398614382,99.5575,140.6,140.51,3.58108954]
[1765398614578,99.5575,140.6,140.52,3.53]
[1765398614778,99.5431,140.62,140.53,11.9955622]
[1765398614974,99.5431,140.62,140.54,3.53]
[1765398615174,99.5336,140.64,140.55,3.53]
[1765398615383,99.5341,140.63,140.55,3.53]
[1765398615676,99.5341,140.63,140.58,3.6056693]
[1765398615677,0.0546488,140.61,140.58,3.6056693]
[1765398616072,99.4937,140.69,140.58,3.6056693]
[1765398616275,99.4587,140.74,140.63,3.56]
[1765398616472,105.8439,140.75,140.64,3.56]
[1765398616677,99.4141,140.8,140.68,3.56]
[1765398616893,198.7781,140.84,140.71,3.56]
[1765398616894,99.3962,140.83,140.71,3.56]
[1765398617185,99.3795,140.85,140.73,3.56]
[1765398617383,0.02588508,140.78,140.76,0.05308206]
[1765398617587,99.4026,140.82,140.73,3.56]
[1765398617782,0.02588508,140.78,140.76,0.0464474]
[1765398618680,99.446,140.76,140.69,3.56]
[1765398618882,99.4403,140.77,140.69,3.56]
[1765398619071,6.3917,140.79,140.69,3.56]
[1765398619274,105.8164,140.79,140.69,3.56]
[1765398619472,0.0543966,140.75,140.73,0.05262276]
[1765398620477,0.0543966,140.75,140.73,3.61262276]
[1765398620676,9.40585517,140.84,140.73,3.61262276]
[1765398620875,9.40585517,140.84,140.73,3.56]
[1765398620876,99.3955,140.83,140.73,3.56]
[1765398621292,9.40585517,140.81,140.73,3.56]
[1765398621781,99.4176,140.8,140.76,0.05171019]
[1765398621979,9.40585517,140.78,140.77,0.04782427]
[1765398622180,9.40585517,140.78,140.76,0.05352868]
[1765398622487,99.4385,140.77,140.66,60.26]
[1765398622679,99.4385,140.77,140.66,63.82]
[1765398622880,108.85475517,140.76,140.66,63.82]
[1765398623383,108.85475517,140.76,140.7,0.0476302]
[1765398623384,0.04894378,140.72,140.7,0.0476302]
[1765398623683,0.04894378,140.72,140.7,3.6076302]
[1765398625080,0.04894378,140.72,140.7,0.0476302]
[1765398625584,6.44344378,140.72,140.7,0.0476302]
[1765398625785,0.04894378,140.72,140.7,0.0476302]
[1765398625983,99.3684,140.87,140.73,3.56]
[1765398626183,105.7455,140.88,140.75,3.56]
[1765398626382,9.40585517,140.89,140.76,3.56]
[1765398626579,108.75685517,140.89,140.76,3.56]
[1765398626783,105.7671,140.85,140.76,3.56]
[1765398626998,99.3927,140.83,140.79,0.05434689]
[1765398627382,6.3904,140.81,140.79,0.05434689]
[1765398627584,99.3887,140.84,140.79,0.05434689]
[1765398627785,99.4092,140.81,140.79,0.05434689]
[1765398627986,6.3914,140.79,140.72,3.56]
[1765398628183,99.405,140.82,140.69,3.56]
[1765398628389,99.381,140.85,140.71,3.56]
[1765398628591,108.77905517,140.86,140.72,3.56]
[1765398628887,0.05238175,140.8,140.78,0.05318784]
[1765398629083,0.04613189,140.8,140.78,0.05318784]
[1765398630493,99.46323189,140.8,140.71,60.18]
[1765398630698,99.4171,140.8,140.71,60.18]
[1765398630995,99.4209,140.79,140.71,60.18]
[1765398631196,105.8134,140.79,140.71,60.18]
[1765398631498,0.05383059,140.76,140.74,0.05094066]
[1765398631690,0.05383059,140.76,140.74,3.61094066]
[1765398631891,0.05383059,140.76,140.74,0.05094066]
[1765398633688,105.88923059,140.76,140.74,0.05094066]
[1765398634793,6.44693059,140.76,140.74,0.05094066]
[1765398637105,0.05383059,140.76,140.74,0.05094066]
[1765398637302,0.05383059,140.76,140.74,3.40094066]
[1765398637508,0.05383059,140.76,140.74,0.05094066]
[1765398640007,0.05383059,140.76,140.74,3.40094066]
[1765398640395,0.05383059,140.76,140.74,0.05094066]
[1765398641904,6.3931,140.75,140.74,0.05094066]
[1765398642304,0.05383059,140.76,140.74,0.05094066]
[1765398643211,0.05383059,140.76,140.74,3.40094066]
[1765398643911,0.05383059,140.76,140.74,0.05094066]
[1765398644512,0.05383059,140.76,140.74,3.40094066]
[1765398644713,0.05383059,140.76,140.74,0.05094066]
[1765398645615,6.44673059,140.76,140.74,0.05094066]
[1765398646408,0.05383059,140.76,140.74,3.40094066]
[1765398646611,99.3932,140.83,140.74,3.40094066]
[1765398646810,99.4071,140.81,140.74,3.35]
[1765398647520,99.4095,140.81,140.74,3.35]
[1765398647718,0.0548098,140.79,140.76,0.05032193]
[1765398647918,6.3919,140.78,140.76,0.05032193]
[1765398648316,0.0548098,140.79,140.77,3.35]
[1765398648914,0.0548098,140.79,140.76,0.05032193]
[1765398649319,99.4787098,140.79,140.76,0.05032193]
[1765398649526,6.3919,140.78,140.76,0.05032193]
[1765398650416,99.4787098,140.79,140.76,3.40032193]
[1765398650417,0.0548098,140.79,140.76,3.40032193]
[1765398651610,6.3919,140.78,140.76,0.05032193]
[1765398652217,6.3919,140.78,140.76,3.40032193]
[1765398652420,0.0548098,140.79,140.76,3.40032193]
[1765398652619,0.0548098,140.79,140.76,0.05032193]
[1765398652814,6.4462098,140.79,140.76,3.40032193]
[1765398653218,0.0548098,140.79,140.76,3.40032193]
[1765398654925,6.3893,140.84,140.78,3.35]
[1765398655430,6.3888,140.85,140.8,3.35]
[1765398655623,99.3678,140.87,140.8,3.35]
[1765398655921,99.3799,140.85,140.8,3.35]
[1765398656128,99.3799,140.85,140.81,0.04714341]
[1765398656328,99.3799,140.85,140.81,3.39714341]
[1765398657014,6.3897,140.83,140.81,3.39714341]
[1765398657214,158.8123,140.89,140.81,3.39714341]
[1765398657428,108.74315517,140.91,140.83,3.35]
[1765398657429,6.3875,140.88,140.83,3.35]
[1765398657622,99.3384,140.91,140.86,6.27148505]
[1765398657925,99.3384,140.91,140.87,0.04658385]
[1765398658329,6.3861,140.91,140.88,6.27148505]
[1765398658523,6.3861,140.91,140.89,6.27148505]
[1765398658725,99.3466,140.9,140.87,0.04658385]
[1765398658935,99.3205,140.94,140.87,0.04658385]
[1765398659133,99.3205,140.94,140.88,8.4655622]
[1765398659433,6.3852,140.93,140.89,11.8155622]
[1765398659634,6.3852,140.93,140.9,0.05106345]
[1765398660017,409.8372,141.01,140.92,11.8155622]
[1765398660018,99.2752,141.0,140.92,11.8155622]
[1765398660221,99.2682,141.01,140.93,11.77245364]
[1765398660434,99.2682,141.01,140.95,8.46892174]
[1765398660643,6.3815,141.01,140.96,8.42245364]
[1765398660826,99.2379,141.05,140.98,8.42245364]
[1765398661022,99.2329,141.06,140.99,11.77245364]
[1765398661226,99.2657,141.01,140.99,5.364e-05]
[1765398661432,99.2887,140.98,140.95,12.56347341]
[1765398661739,6.3843,140.95,140.92,12.56347341]
[1765398662030,99.3094,140.95,140.9,15.91347341]
[1765398662232,99.3235,140.93,140.88,12.56347341]
[1765398662419,0.05164128,140.92,140.89,3.40422979]
[1765398664229,0.05164128,140.92,140.89,0.05422979]
[1765398664230,6.3858,140.91,140.89,0.05422979]
[1765398664528,0.05164128,140.92,140.89,3.16422979]
[1765398664727,6.3858,140.91,140.89,3.16422979]
[1765398664927,6.3858,140.91,140.89,0.05422979]
[1765398665331,105.7224,140.91,140.89,0.05422979]
[1765398665834,99.38374128,140.92,140.89,0.05422979]
[1765398665835,6.43744128,140.92,140.89,0.05422979]
[1765398667634,6.3863,140.9,140.89,0.05422979]
[1765398668330,6.3881,140.86,140.81,3.11]
[1765398668625,99.3508,140.89,140.81,3.11]
[1765398668826,99.3793,140.85,140.77,3.11]
[1765398669032,99.4,140.82,140.77,3.11]
[1765398669242,0.0498749,140.81,140.78,0.04573466]
[1765398670031,6.4403749,140.81,140.78,0.04573466]
[1765398670437,0.0498749,140.81,140.78,0.04573466]
[1765398670734,0.0498749,140.81,140.78,3.08573466]
[1765398671629,0.0498749,140.81,140.78,0.04573466]
[1765398671835,0.0498749,140.81,140.78,3.08573466]
[1765398672736,158.7644,140.9,140.79,3.04]
[1765398672938,6.3874,140.88,140.79,3.04]
[1765398673139,99.3312,140.92,140.79,3.04]
[1765398673339,99.3312,140.92,140.82,3.04]
[1765398673528,0.04752249,140.88,140.86,3.0943784]
[1765398673930,6.3856,140.92,140.86,3.0943784]
[1765398674137,158.7287,140.95,140.86,3.04]
[1765398674138,99.3087,140.95,140.86,3.04]
[1765398674537,6.3847,140.94,140.86,3.04]
[1765398674940,99.2973,140.97,140.89,0.051052]
[1765398674941,99.3297,140.92,140.89,0.051052]
[1765398675241,6.3866,140.9,140.89,0.051052]
[1765398675633,7.8066,140.9,140.89,0.051052]
[1765398675838,7.8066,140.9,140.74,99.4524]
[1765398675839,99.3861,140.84,140.76,3.04]
[1765398676146,99.3831,140.85,140.76,3.04]
[1765398676544,6.3893,140.84,140.76,3.04]
[1765398676745,0.04887416,140.81,140.8,3.04]
[1765398679554,6.3888,140.85,140.81,3.04]
[1765398680043,6.3897,140.83,140.79,3.08843925]
[1765398680639,0.02082467,140.82,140.79,3.08843925]
[1765398681047,6.41102467,140.82,140.79,3.08843925]
[1765398681545,6.41102467,140.82,140.79,0.04843925]
[1765398681546,99.42412467,140.82,140.79,0.04843925]
[1765398682143,6.3906,140.81,140.79,0.04843925]
[1765398682451,6.3906,140.81,140.75,60.12]
[1765398682452,99.4155,140.8,140.75,60.12]
[1765398682940,99.4297,140.78,140.7,3.04]
[1765398683449,0.0535301,140.75,140.73,0.05231313]
[1765398683960,99.4572,140.74,140.68,60.12]
[1765398684152,6.3961,140.69,140.62,3.04]
[1765398684836,6.3967,140.68,140.62,3.04]
[1765398685037,0.04782346,140.66,140.64,0.05404461]
[1765398685243,0.04782346,140.66,140.55,3.04]
[1765398685244,104.8918378,140.65,140.55,3.04]
[1765398685847,6.3984,140.64,140.55,3.04]
[1765398686246,0.05370708,140.61,140.58,0.05402644]
[1765398686947,99.60260708,140.61,140.58,0.05402644]
[1765398687144,104.9344378,140.59,140.51,3.04]
[1765398687351,104.9550378,140.56,140.46,3.04]
[1765398687657,6.4026,140.55,140.46,3.04]
[1765398688046,0.04588714,140.52,140.49,0.0480592]
[1765398688245,0.04588714,140.52,140.49,3.0880592]
[1765398688644,0.04588714,140.52,140.49,0.0480592]
[1765398688951,0.04588714,140.52,140.49,3.0880592]
[1765398692857,6.4014,140.57,140.49,3.0880592]
[1765398693842,0.05395808,140.54,140.49,3.0880592]
[1765398694047,0.05395808,140.54,140.5,3.23920397]
[1765398694253,0.04493688,140.53,140.5,0.04920397]
[1765398694457,0.04493688,140.53,140.5,3.23920397]
[1765398694959,0.04493688,140.53,140.5,0.04920397]
[1765398695347,6.4036,140.52,140.5,0.04920397]
[1765398695556,106.017,140.52,140.5,0.04920397]
[1765398695853,106.017,140.52,140.45,60.2]
[1765398695854,99.6265,140.5,140.42,3.19]
[1765398696056,6.4058,140.48,140.42,3.19]
[1765398696451,6.4063,140.47,140.42,3.19]
[1765398696757,0.0510888,140.46,140.43,0.04489078]
[1765398697468,0.0510888,140.46,140.43,3.23489078]
[1765398698549,6.4036,140.52,140.44,3.19]
[1765398698860,99.6092,140.53,140.44,3.19]
[1765398699055,6.4031,140.54,140.44,3.19]
[1765398699450,6.4031,140.54,140.48,0.0540416]
[1765398699649,0.05388921,140.5,140.48,3.2440416]
[1765398699850,0.05267855,140.5,140.48,3.2440416]
[1765398700059,99.5784,140.57,140.49,3.19]
[1765398700456,6.4015,140.57,140.49,3.19]
[1765398700657,99.5629,140.59,140.5,3.19]
[1765398700853,99.5704,140.58,140.5,3.19]
[1765398701055,0.05401391,140.55,140.53,0.0492789]
[1765398702462,105.01985171,140.55,140.48,60.22]
[1765398702765,99.5981,140.54,140.48,60.22]
[1765398703664,105.01985171,140.55,140.5,0.05039197]
[1765398703966,5.42545171,140.55,140.5,0.05039197]
[1765398704256,6.4029,140.54,140.5,0.05039197]
[1765398704463,5.42545171,140.55,140.42,3.19]
[1765398704464,5.3714378,140.52,140.42,3.19]
[1765398704859,5.3714378,140.52,140.42,9.5979]
[1765398705459,0.05377622,140.48,140.46,0.05235158]
[1765398706964,5.42521402,140.48,140.38,63.43]
[1765398707161,5.3714378,140.45,140.34,3.19]
[1765398707464,26.37029571,140.48,140.34,3.19]
[1765398707670,6.4066,140.46,140.34,3.19]
[1765398707966,0.04674267,140.41,140.39,0.0544344]
[1765398708155,5.3714378,140.4,140.31,60.24]
[1765398708360,105.0926378,140.37,140.26,3.19]
[1765398708558,99.7042,140.39,140.26,3.19]
[1765398708762,5.3714378,140.37,140.26,3.19]
[1765398708963,5.3714378,140.4,140.28,3.19]
[1765398709158,0.05475036,140.35,140.33,3.23604106]
[1765398709360,0.04856978,140.35,140.33,3.23604106]
[1765398709585,0.04856978,140.35,140.33,0.04604106]
[1765398710264,6.45986978,140.35,140.33,0.04604106]
[1765398710656,0.04856978,140.35,140.33,0.04604106]
[1765398712264,6.46016978,140.35,140.33,0.04604106]
[1765398712660,99.7493,140.33,140.24,3.19]
[1765398712971,99.776,140.29,140.2,3.19]
[1765398713162,105.1426378,140.3,140.2,3.19]
[1765398713562,99.7367,140.35,140.2,3.19]
[1765398713764,99.7264,140.36,140.18,60.28]
[1765398713765,0.0492293,140.29,140.26,0.04510165]
[1765398713968,0.04614724,140.29,140.26,0.05028461]
[1765398714659,5.41758504,140.29,140.26,0.05028461]
[1765398714862,5.41758504,140.29,140.11,185.2419]
[1765398714863,99.796,140.27,140.19,3.19]
[1765398715063,99.8045,140.25,140.19,3.19]
[1765398715359,105.1715378,140.26,140.19,3.19]
[1765398715965,0.05462975,140.24,140.21,0.05246258]
[1765398716268,6.4173,140.22,140.15,3.19]
[1765398717080,106.2263,140.25,140.15,3.19]
[1765398717369,0.04771811,140.21,140.19,0.05279806]
[1765398717571,6.46551811,140.21,140.19,0.05279806]
[1765398718367,0.04771811,140.21,140.19,0.05279806]
[1765398718572,99.7766,140.29,140.19,3.24279806]
[1765398718763,6.4133,140.31,140.22,3.19]
[1765398718965,99.7692,140.3,140.22,3.19]
[1765398719273,6.4153,140.27,140.22,3.19]
[1765398719468,99.8044,140.25,140.17,3.19]
[1765398719669,0.04864846,140.22,140.2,0.04760807]
[1765398719971,0.04864846,140.22,140.17,3.19]
[1765398719972,99.8433,140.2,140.13,3.10853714]
[1765398720278,99.8698,140.16,140.13,3.10853714]
[1765398720481,6.4208,140.15,140.13,3.10853714]
[1765398720773,99.827,140.22,140.13,3.10853714]
[1765398720774,99.8338,140.21,140.13,6.29853714]
[1765398720983,106.2804,140.17,140.16,0.0546238]
[1765398721176,99.8755,140.15,140.13,3.714e-05]
[1765398721362,99.8965,140.12,140.04,3.19]
[1765398721566,99.8891,140.13,140.04,3.19]
[1765398721761,5.3714378,140.15,140.04,3.19]
[1765398721974,6.4202,140.16,140.08,3.19]
[1765398722178,99.93975896,140.13,140.11,0.0528153]
[1765398722367,99.9186,140.09,139.98,3.19]
[1765398722562,99.8821,140.14,140.03,3.19]
[1765398722768,99.8702,140.16,140.05,3.19]
[1765398723073,99.8418,140.2,140.1,3.19]
[1765398723275,0.04924412,140.16,140.14,3.23989938]
[1765398723465,0.0492523,140.16,140.14,3.23989938]
[1765398723769,0.0492523,140.16,140.14,0.04989938]
[1765398724362,0.0492523,140.16,140.14,3.25989938]
[1765398724877,6.4185,140.2,140.14,3.25989938]
[1765398725062,99.8393,140.2,140.14,3.25989938]
[1765398725270,6.4198,140.17,140.14,0.04989938]
[1765398725467,99.8481,140.19,140.14,0.04989938]
[1765398725679,99.8181,140.23,140.05,3.21]
[1765398725680,6.4222,140.12,140.05,3.21]
[1765398725973,99.868,140.16,140.05,3.21]
[1765398726176,99.8996,140.12,140.05,3.21]
[1765398726567,99.9178,140.09,140.01,3.21]
[1765398726765,0.05423153,140.06,140.04,3.26040196]
[1765398727268,6.47883153,140.06,140.04,3.26040196]
[1765398727659,0.05423153,140.06,140.04,3.26040196]
[1765398728064,199.7663,140.14,140.05,3.21]
[1765398728474,99.9009,140.12,140.05,3.21]
[1765398728769,9.44931611,140.13,140.05,3.21]
[1765398728974,9.44931611,140.13,140.09,3.21]